Cogmind - Beta 17 @@@ ROGUE MODE // 2026.08.09 @ 14:45:38 Player: Minty Result: Destroyed by Golem with Assembled Focal Cannon Performance ------------- Evolutions (3) 1500 Regions Visited (12) 2400 Robots Destroyed (61) 305 Value Destroyed (1998) 1998 Prototype IDs (35) 700 Alien Tech Used (0) 0 Bonus (952) 952 TOTAL SCORE: 7855 Bonus ------- Follower Combat Kills 131 Aligned with FarCom 300 Destroyed Z-Imprinter 1000 Friendly Fire -479 Cogmind --------- Core Integrity 0/700 Matter 290/300 Energy 98/100 System Corruption 0% Temperature Cool (18) Movement Rolling (105) Ox1 Location -7/Deep Caves Parts ------- > --- POWER (1) -------- Zionite Light DM Reactor > --- PROPULSION (4) --- Armored Wheel Armored Wheel > --- UTILITY (5) ------ Experimental Heat Sink Zionite Weapon Casing Zionite Light Carapace Zionite Heavy Carapace > --- WEAPON (3) ------- Zionite Laser-S Zionite Phaser-S Zionite Phaser-S > --- INVENTORY (5) ---- Zionite Biocell (600) Zionite Biocell (600) RU-N14's Throwing Claymores (3) RU-N14's Throwing Claymores (2) RU-N14's Throwing Claymores (4) Peak State ------------ > --- POWER ------------ Zionite Light DM Reactor > --- PROPULSION ------- Zionite Glidesys I Zionite Glidesys I Zionite Glidesys I > --- UTILITY ---------- Zionite Biocell Melee Analysis Suite Improved Melee Analysis Suite Improved Reaction Control System Zionite Weapon Casing > --- WEAPON ----------- AWS/Gauss Makeshift Sword > --- INVENTORY -------- RU-N14's Throwing Claymores RU-N14's Throwing Claymores RU-N14's Throwing Claymores RU-N14's Throwing Claymores [Rating: 72] Favorites ----------- Power Light Nuclear Core Engine Light Ion Engine Power Core Light Nuclear Core Reactor Zionite Light DM Reactor Propulsion VTOL Module Treads Light Treads Leg Aluminum Leg Wheel Compact Wheel Hover Unit Zionite Glidesys I Flight Unit VTOL Module Utility Hacking Suite Device Improved Heat Sink Storage Small Storage Unit Processor Advanced Terrain Scan Processor Hackware Hacking Suite Protection Medium Armor Plating Weapon Scythe Energy Gun Beam Rifle Energy Cannon Heavy Particle Cannon Ballistic Gun AWS/Gauss Launcher Grenade Launcher Special Weapon Plasma Cutter Slashing Weapon Scythe Build | -11 -10 -10 -10 -9 -8 -7 -7 -7 -7 -7 -7 -7 ------- Run | Yrd Mat Min Exi Min Mat Fac Was Fac Low Low Zio Dee Slots Evolved 6 | . . . . . 4 2 . . . . . . Power . | . . . . . . . . . . . . . Propulsion 2 | . . . . . 1 1 . . . . . . Utility 3 | . . . . . 2 1 . . . . . . Weapon 1 | . . . . . 1 . . . . . . . Parts Attached 102 | . 15 . 2 1 25 12 1 10 3 5 4 24 Power 12 | . 2 . . 1 2 2 . 2 . . . 3 Engine 5 | . 1 . . 1 2 . . 1 . . . . Core 4 | . 1 . . . . 2 . 1 . . . . Reactor 3 | . . . . . . . . . . . . 3 Propulsion 30 | . 3 . 2 . 4 6 . 3 2 5 . 5 Treads 3 | . 2 . . . 1 . . . . . . . Leg 1 | . 1 . . . . . . . . . . . Wheel 4 | . . . 2 . . . . . . . . 2 Hover 3 | . . . . . . . . . . . . 3 Flight 19 | . . . . . 3 6 . 3 2 5 . . Utility 31 | . 5 . . . 10 1 1 3 . . 2 9 Device 9 | . 2 . . . 2 . . 1 . . 1 3 Storage 6 | . 2 . . . 1 . . 1 . . 1 1 Processor 4 | . . . . . 1 . 1 1 . . . 1 Hackware 4 | . . . . . 3 1 . . . . . . Protection 8 | . 1 . . . 3 . . . . . . 4 Artifact . | . . . . . . . . . . . . . Weapon 29 | . 5 . . . 9 3 . 2 1 . 2 7 Energy Gun 7 | . 3 . . . . 1 . . . . . 3 Energy Cannon 6 | . . . . . 4 . . . 1 . . 1 Ballistic Gun 7 | . 1 . . . 4 2 . . . . . . Ballistic Cannon . | . . . . . . . . . . . . . Launcher 1 | . 1 . . . . . . . . . . . Special Weapon 5 | . . . . . 1 . . . . . 1 3 Impact Weapon . | . . . . . . . . . . . . . Slashing Weapon 3 | . . . . . . . . 2 . . 1 . Piercing Weapon . | . . . . . . . . . . . . . Special Melee Weapon . | . . . . . . . . . . . . . Unidentified Prototypes 12 | . . . . . . 1 . . . . 2 9 Parts Lost 42 | . 2 . . 2 4 10 2 . 1 7 . 14 Power 5 | . 1 . . 1 . 1 . . . . . 2 Propulsion 22 | . . . . . . 7 1 . 1 6 . 7 Utility 8 | . . . . . 2 1 1 . . 1 . 3 Weapon 7 | . 1 . . 1 2 1 . . . . . 2 Highest Loss Streak 10 | . 1 . . 2 3 10 2 . 1 7 . 8 To Critical Strikes 1 | . . . . 1 . . . . . . . . Average Backups 8 | 6 10 15 14 12 11 6 5 4 6 5 6 4 Power . | 1 1 1 1 . . . . . . . . . Propulsion . | 4 3 2 1 . . . . . 1 1 . . Utility 2 | . 3 7 7 7 5 1 . . . . . . Weapon 3 | 1 2 3 3 3 3 3 3 3 3 3 5 3 Tool/Special . | . . . . . . . . . . . . . Unused Backups 12 | . 4 . . . 4 . 2 . . . . 2 Power 1 | . 1 . . . . . . . . . . . Propulsion 2 | . 2 . . . . . . . . . . . Utility 5 | . . . . . 2 . 2 . . . . 1 Weapon 3 | . 1 . . . 1 . . . . . . 1 Tool/Special 1 | . . . . . 1 . . . . . . . Average Slot Usage (%) 80 | . 91 100 100 95 91 59 38 71 85 87 85 62 Engine 4 | . 7 14 14 11 9 2 . 2 . . . . Core 2 | . 6 . . . . . . 1 7 6 7 . Treads 5 | . 12 28 20 . 3 . . . . . . . Leg 2 | . 14 . . . . . . . . . . . Wheel 4 | . . . 7 28 15 . . . . . . 7 Flight 10 | . . . . . 3 17 10 20 30 28 30 3 Device 6 | . 4 14 14 14 15 1 2 3 7 5 . 3 Storage 9 | . 14 14 14 14 9 7 2 . 7 7 12 4 Processor 6 | . . . . . 1 . . 10 15 15 15 9 Hackware 4 | . . . . . 3 26 23 19 7 7 1 . Protection 2 | . 1 . . . 5 . . . . . . 9 Energy Gun 9 | . 19 28 28 25 2 . . . . . . 9 Energy Cannon 2 | . . . . . 16 . . . . . . . Ballistic Gun 2 | . 7 . . . 3 . . . . . . 3 Slashing Weapon 4 | . . . . . . . . 11 8 14 15 3 Peak Build Rating 72 | 6 13 13 14 14 32 34 20 39 38 38 44 72 Average Rating 27 | 6 10 13 13 13 24 22 15 29 35 33 33 49 On Entrance 20 | 6 6 13 13 14 14 28 20 17 35 38 31 33 Avg Prop Armor Cover (%) 8 | . . . . . 8 . . . . . . . Naked Turns . | . . . . . . . . . . . . . Heaviest Build 63 | 11 38 30 30 30 63 15 6 13 15 15 17 35 Greatest Support 42 | 20 40 40 40 32 32 16 8 13 17 17 16 42 Greatest Overweight (x) 7 | . 1 . . . 2 4 . . . . 1 7 Average Overweight (x) . | . . . . . . . . . . . . 1 Largest Inventory Capacity 15 | 8 15 15 15 15 15 8 8 8 8 8 8 8 Average Capacity 9 | 8 11 15 15 15 14 8 6 5 8 8 8 5 Most Carried 15 | 6 15 15 15 15 15 8 8 8 8 8 8 8 Average Carried 8 | 6 10 15 14 13 12 7 6 5 7 6 7 4 Final Capacity 15 | 8 15 15 15 15 8 8 5 8 8 8 8 5 Final Carried 15 | 6 15 15 15 13 8 8 5 8 8 5 8 5 Class Distribution -------------------- 34% | Mutant 12% | Scavenger-Tank 11% | Hacker-Sprinter 11% | Scavenger-Sprinter 9% | Sprinter 8% | Skirmisher 3% | Hacker-Mutant 3% | Scavenger-Gladiator Dominant Class ---------------- Mutant | -10/Materials Mutant | -10/Mines Mutant | -10/Exiles Mutant | -9/Mines Skirmisher | -8/Materials Hacker-Sprinter | -7/Factory Hacker-Mutant | -7/Waste Hacker-Mutant | -7/Factory Sprinter | -7/Lower Caves Sprinter | -7/Lower Caves Scavenger-Sprinter | -7/Zion Scavenger-Tank | -7/Deep Caves Resources | -11 -10 -10 -10 -9 -8 -7 -7 -7 -7 -7 -7 -7 ----------- Run | Yrd Mat Min Exi Min Mat Fac Was Fac Low Low Zio Dee Matter Collected 1609 | 200 249 16 . . 421 43 . 313 62 55 20 230 Remotely . | . . . . . . . . . . . . . Salvage Created 2041 | . 586 83 . 40 431 119 . 234 107 97 . 344 Parts 117 | . 35 . . 3 24 12 . 10 2 8 . 23 Haulers Intercepted 1 | . 1 . . . . . . . . . . . Recyclers Shooed 3 | . 1 . . 1 . . . 1 . . . . Parts Field Recycled . | . . . . . . . . . . . . . Retrieved Matter . | . . . . . . . . . . . . . Parts Self-Destructed 9 | . . . . . . . . . 4 5 . . Prevented . | . . . . . . . . . . . . . Parts Restored . | . . . . . . . . . . . . . Kills | -11 -10 -10 -10 -9 -8 -7 -7 -7 -7 -7 -7 -7 ------- Run | Yrd Mat Min Exi Min Mat Fac Was Fac Low Low Zio Dee Combat Hostiles Destroyed 51 | . 12 2 . 3 12 5 . 2 3 4 . 8 Melee 9 | . . . . . . . . 2 3 4 . . Guns 25 | . 9 2 . 3 1 3 . . . . . 7 Cannons 4 | . . . . . 4 . . . . . . . AOE 13 | . 3 . . . 7 2 . . . . . 1 Classes Destroyed 12 | . 4 . . 1 3 . . . . . . 4 Worker 3 | . 1 . . . . . . 2 . . . . Builder 3 | . 1 . . . 2 . . . . . . . Hauler 1 | . 1 . . . . . . . . . . . Recycler 3 | . . . . . 1 . . 2 . . . . Swarmer 13 | . . . . 3 . 3 . 2 1 4 . . Grunt 27 | . 12 2 . . 9 2 . . 2 . . . Sentry 2 | . . . . . 2 . . . . . . . Hunter 1 | . . . . . 1 . . . . . . . Z-Technician 4 | . . . . . . . . . . . . 4 Z-Light 6 | . . . . . . . . . . . . 6 Assembled 2 | . . . . . . . . . . . . 2 Wasp 1 | . . . . . . . . . . . . 1 Fireman 1 | . . . . . . . . . . . . 1 Best Kill Streak 10 | . 5 2 . 3 10 2 . 4 3 3 . 5 Combat Bots Only 8 | . 5 2 . 3 8 2 . 2 3 3 . 5 Max Kills in Single Turn 4 | . 2 1 . 2 2 1 . 1 1 1 . 4 Gunslinging 1 | . . . . 1 . . . . . . . . Exploded 2 | . 2 . . . 2 1 . . . . . 1 Melee 1 | . . . . . . . . 1 1 1 . . Uniques/NPCs Destroyed 1 | . . . . . . . . . . . . 1 Z-Imprinter (-7/Deep Caves) Combat | -11 -10 -10 -10 -9 -8 -7 -7 -7 -7 -7 -7 -7 -------- Run | Yrd Mat Min Exi Min Mat Fac Was Fac Low Low Zio Dee Hostile Shots Fired 364 | . 57 15 . 25 89 57 2 7 26 40 . 46 Missed 121 | . 14 6 . 2 27 28 1 3 11 14 . 15 Hits 243 | . 43 9 . 23 62 29 1 4 15 26 . 31 Melee 1 | . . . . . . . 1 . . . . . Projectile 242 | . 43 9 . 23 62 29 . 4 15 26 . 31 Critical Strikes 6 | . . . . 1 2 2 1 . . . . . Damage Taken 4556 | . 593 117 . 191 1111 571 48 65 193 375 . 1292 Core 1048 | . 131 43 . 73 89 207 19 . 83 66 . 337 Absorbed by Shields . | . . . . . . . . . . . . . Redirected to Shielding 222 | . . . . . . . . . . . . 222 Core Remaining (%) 61 | 100 . . . 1 83 . . . . . . . Volleys Fired 99 | . 39 8 . 7 28 5 . . 1 . . 11 Largest 3 | . 2 2 . 2 3 1 . . 1 . . 3 Hottest 225 | . 112 112 . 121 225 30 . . 80 . . 180 Shots Fired 215 | . 76 16 . 14 51 8 . . 1 . . 49 Gun 158 | . 73 16 . 14 9 3 . . . . . 43 Cannon 31 | . . . . . 28 . . . 1 . . 2 Launcher 22 | . 3 . . . 14 5 . . . . . . Special 4 | . . . . . . . . . . . . 4 Kinetic 61 | . 25 . . . 5 3 . . . . . 28 Thermal 107 | . 39 16 . 14 32 . . . 1 . . 5 Explosive 26 | . 3 . . . 14 5 . . . . . 4 Electromagnetic 11 | . 9 . . . . . . . . . . 2 Phasic 10 | . . . . . . . . . . . . 10 Robot Hit Streak 8 | . 8 7 . 7 6 7 . . . . . 8 Robot Miss Streak 5 | . 3 1 . 5 2 . . . . . . 5 Penetration Max . | . . . . . . . . . . . . . Secondary Targets 3 | . 2 . . 1 . . . . . . . . Max Gunslinging Chain 1 | . 1 . . 1 . . . . . . . . Autonomous 31 | . . . . . . 3 . . . . . 28 Shots Hit Robots 146 | . 48 12 . 9 30 5 . 11 4 4 . 23 Core Hits 115 | . 29 3 . 4 37 10 . 5 3 4 . 20 Critical Kills . | . . . . . . . . . . . . . Critical Parts Destroyed . | . . . . . . . . . . . . . Critical Strikes 7 | . 2 2 . . 1 . . . . . . 2 Burn 5 | . 2 2 . . 1 . . . . . . . Sever 1 | . . . . . . . . . . . . 1 Intensify 1 | . . . . . . . . . . . . 1 Melee Attacks 37 | . . . . . . . . 16 9 9 1 2 Impact . | . . . . . . . . . . . . . Slashing 37 | . . . . . . . . 16 9 9 1 2 Piercing . | . . . . . . . . . . . . . Sneak Attacks 8 | . . . . . . . . 6 . . . 2 Combat Hostiles . | . . . . . . . . . . . . . Follow-up Attacks . | . . . . . . . . . . . . . Damage Inflicted 7491 | . 883 174 . 135 1595 503 . 625 167 150 . 3259 Guns 1882 | . 638 174 . 135 101 128 . . . . . 706 Cannons 390 | . . . . . 390 . . . . . . . Explosions 3954 | . 238 . . . 1104 366 . . . . . 2246 Melee 1090 | . . . . . . . . 625 167 150 . 148 Ramming 16 | . 7 . . . . 9 . . . . . . Kinetic 955 | . 186 . . . 57 128 . . . . . 584 Thermal 2974 | . 368 174 . 135 551 . . . . . . 1746 Explosive 2065 | . 156 . . . 987 366 . . . . . 556 Electromagnetic 166 | . 166 . . . . . . . . . . . Impact . | . . . . . . . . . . . . . Slashing 1249 | . . . . . . . . 625 167 150 . 307 Piercing . | . . . . . . . . . . . . . Phasic 66 | . . . . . . . . . . . . 66 Highest Corruption 3 | . . . . . 3 1 1 1 1 1 1 . Average Corruption 1 | . . . . . 2 1 1 1 1 1 1 . Corruption Purged . | . . . . . . . . . . . . . Corruption Blocked . | . . . . . . . . . . . . . Effects 5 | . . . . . 1 . . 1 3 . . . Matter Fused 1 | . . . . . . . . 1 . . . . Energy Discharges 2 | . . . . . . . . . 2 . . . Parts Fused 1 | . . . . . 1 . . . . . . . Data Loss (major) 1 | . . . . . . . . . 1 . . . Overload Shots . | . . . . . . . . . . . . . Overflow Damage 838 | . . . . . 24 29 . 181 . . . 604 Projectiles . | . . . . . . . . . . . . . Explosions 610 | . . . . . 24 29 . . . . . 557 Melee 228 | . . . . . . . . 181 . . . 47 Knockbacks . | . . . . . . . . . . . . . Impact . | . . . . . . . . . . . . . Kinetic . | . . . . . . . . . . . . . Secondary . | . . . . . . . . . . . . . Self-Inflicted Damage 648 | . 38 . . . 132 88 . . . . . 390 Shots 9 | . 2 . . . 4 2 . . . . . 1 Rammed 2 | . . . . . . 2 . . . . . . Targets Rammed 4 | . 2 . . . . 2 . . . . . . Kicked 2 | . 2 . . . . . . . . . . . Crushed . | . . . . . . . . . . . . . Highest Temperature 326 | . 326 135 . 90 308 17 . . 85 13 . 80 Average Temperature 90 | . 109 77 . 36 123 11 . . 29 13 . 29 Received Heat Transfer 1254 | . 309 63 . . 486 126 . . 18 . . 252 Effects 3 | . 2 . . . 1 . . . . . . . Energy Bleed 1 | . . . . . 1 . . . . . . . Interference 2 | . 2 . . . . . . . . . . . Siege Activations . | . . . . . . . . . . . . . Martial Activations . | . . . . . . . . . . . . . Shielding Activations . | . . . . . . . . . . . . . Robots Disrupted . | . . . . . . . . . . . . . Combat Hostiles . | . . . . . . . . . . . . . Robots Corrupted . | . . . . . . . . . . . . . Combat Hostiles . | . . . . . . . . . . . . . Parts Fried . | . . . . . . . . . . . . . Impact Corruptions . | . . . . . . . . . . . . . Robots Melted . | . . . . . . . . . . . . . Combat Hostiles . | . . . . . . . . . . . . . Parts Melted 8 | . 2 3 . . 1 . . . 2 . . . Heat Transferred 2912 | . 1073 592 . 333 840 . . . . . . 74 Parts Sabotaged . | . . . . . . . . . . . . . Parts Stolen . | . . . . . . . . . . . . . Parts Stripped . | . . . . . . . . . . . . . Power Chain Reactions . | . . . . . . . . . . . . . Alert | -11 -10 -10 -10 -9 -8 -7 -7 -7 -7 -7 -7 -7 ------- Run | Yrd Mat Min Exi Min Mat Fac Was Fac Low Low Zio Dee Maximum Alert Level 1 | . . . . . 1 1 . . . . . . Low Security (%) 88 | 100 100 100 . 100 60 89 100 100 . . . . Level 1 11 | . . . . . 39 10 . . . . . . Level 2 . | . . . . . . . . . . . . . Level 3 . | . . . . . . . . . . . . . Level 4 . | . . . . . . . . . . . . . Level 5 . | . . . . . . . . . . . . . High Security . | . . . . . . . . . . . . . Max Security . | . . . . . . . . . . . . . Peak Influence 259 | . 172 100 . 70 247 259 90 36 . . . . Initial 100 | . . 60 . . 19 100 90 28 . . . . Average 85 | . 88 86 . 44 109 145 61 11 . . . . Influence Increases 1608 | . 374 50 . 70 421 349 . 119 135 90 . . Destroy 0b10 Robot/C 880 | . 240 40 . 60 240 100 . 60 60 80 . . Destroy 0b10 Robot/NC 50 | . 15 . . . 15 . . 20 . . . . Destroy Leader 172 | . 52 10 . 10 60 20 . 10 . 10 . . Allied During Kill 1 | . . . . . . . . 1 . . . . Trap Triggered on 0b10 20 | . . . . . . 20 . . . . . . Successful Hack 54 | . 18 . . . . 8 . 28 . . . . Disable Machine 105 | . 30 . . . 30 45 . . . . . . Destroy Structure 131 | . 19 . . . 76 36 . . . . . . Lose Combat Pursuer 195 | . . . . . . 120 . . 75 . . . Influence Decreases 1608 | . 218 126 80 20 250 311 219 128 76 128 52 . Entered New Map 592 | . . 96 80 . 31 121 169 12 13 18 52 . Time Decay 735 | . 198 30 . 20 180 90 30 84 63 40 . . Lost Part 249 | . 20 . . . 39 100 20 . . 70 . . Lost Ally 32 | . . . . . . . . 32 . . . . Squads Dispatched 9 | . 3 . . . 1 5 . . . . . . Investigation 7 | . 2 . . . . 5 . . . . . . Extermination . | . . . . . . . . . . . . . Reinforcement 2 | . 1 . . . 1 . . . . . . . Assault . | . . . . . . . . . . . . . Garrison . | . . . . . . . . . . . . . Intercept . | . . . . . . . . . . . . . Searches Triggered . | . . . . . . . . . . . . . Construction Impeded . | . . . . . . . . . . . . . Haulers Reinforced . | . . . . . . . . . . . . . Active Scanning Responses . | . . . . . . . . . . . . . Cargo Convoy Interrupts . | . . . . . . . . . . . . . Stealth | -11 -10 -10 -10 -9 -8 -7 -7 -7 -7 -7 -7 -7 --------- Run | Yrd Mat Min Exi Min Mat Fac Was Fac Low Low Zio Dee Distress Signals 4 | . 3 . . . . 1 . . . . . . Communications Jammed . | . . . . . . . . . . . . . Distress Signals . | . . . . . . . . . . . . . Times Spotted 93 | . 19 2 . 4 13 16 5 5 12 5 . 12 Peak Tracking Total 10 | . 3 2 . 4 4 10 5 2 4 5 . 6 Tactical Retreats 7 | . . . . . . 3 . . 4 . . . Traps | -11 -10 -10 -10 -9 -8 -7 -7 -7 -7 -7 -7 -7 ------- Run | Yrd Mat Min Exi Min Mat Fac Was Fac Low Low Zio Dee Traps Triggered 4 | . . . . . 2 2 . . . . . . Indirectly . | . . . . . . . . . . . . . Trap Hack Attempts . | . . . . . . . . . . . . . Triggered . | . . . . . . . . . . . . . Disarmed . | . . . . . . . . . . . . . Reprogrammed 3 | . . . . . . 3 . . . . . . Reused 2 | . . . . . . 2 . . . . . . Traps Extracted . | . . . . . . . . . . . . . Installed . | . . . . . . . . . . . . . Triggered 2 | . . . . . . 2 . . . . . . Objects Rigged 3 | . . . . . . 3 . . . . . . Machines | -11 -10 -10 -10 -9 -8 -7 -7 -7 -7 -7 -7 -7 ---------- Run | Yrd Mat Min Exi Min Mat Fac Was Fac Low Low Zio Dee Machines Disabled 13 | . 2 . . . 2 3 . . . . 3 3 Max in Single Turn 3 | . 1 . . . 2 3 . . . . 1 2 Machines Repaired . | . . . . . . . . . . . . . Machines Dismantled 3 | . . . . . . . . . . . 3 . Machines Sabotaged . | . . . . . . . . . . . . . Overloaded Fab Kills . | . . . . . . . . . . . . . Hacking | -11 -10 -10 -10 -9 -8 -7 -7 -7 -7 -7 -7 -7 --------- Run | Yrd Mat Min Exi Min Mat Fac Was Fac Low Low Zio Dee Machines Accessed 14 | . 3 . 2 . . 5 . 4 . . . . Terminals 9 | . 3 . . . . 5 . 1 . . . . Fabricators 3 | . . . . . . . . 3 . . . . Repair Stations . | . . . . . . . . . . . . . Recycling Units . | . . . . . . . . . . . . . Scanalyzers . | . . . . . . . . . . . . . Garrison Access . | . . . . . . . . . . . . . Total Hacks 45 | . 13 . 2 . . 18 . 12 . . . . Successful 25 | . 5 . 2 . . 10 . 8 . . . . Failed 20 | . 8 . . . . 8 . 4 . . . . Catastrophic 1 | . 1 . . . . . . . . . . . Database Lockouts . | . . . . . . . . . . . . . Manual 25 | . 5 . 1 . . 13 . 5 . . 1 . Terminals 36 | . 13 . . . . 18 . 5 . . . . Fabricators 7 | . . . . . . . . 7 . . . . Repair Stations . | . . . . . . . . . . . . . Recycling Units . | . . . . . . . . . . . . . Scanalyzers . | . . . . . . . . . . . . . Garrison Access . | . . . . . . . . . . . . . Terminal Hacks 16 | . 4 . 2 . . 8 . 2 . . . . Record 1 | . . . 1 . . . . . . . . . Robot Analysis 2 | . . . . . . 2 . . . . . . Branch Access Points 2 | . . . . . . 1 . 1 . . . . Emergency Access Points 1 | . 1 . . . . . . . . . . . Terminal Index 1 | . 1 . . . . . . . . . . . Alert Level 1 | . . . . . . 1 . . . . . . Locate Traps 4 | . 2 . . . . 2 . . . . . . Reprogram Traps 1 | . . . . . . 1 . . . . . . Hauler Manifests 1 | . . . . . . 1 . . . . . . Registered Prototypes 1 | . . . . . . . . 1 . . . . Proto ID Catalog 1 | . . . 1 . . . . . . . . . Fabricator Hacks 2 | . . . . . . . . 2 . . . . Network Status 1 | . . . . . . . . 1 . . . . Build 1 | . . . . . . . . 1 . . . . Repair Station Hacks . | . . . . . . . . . . . . . Recycling Unit Hacks . | . . . . . . . . . . . . . Scanalyzer . | . . . . . . . . . . . . . Garrison Access Hacks . | . . . . . . . . . . . . . Unauthorized Hacks 7 | . 1 . . . . 2 . 4 . . . . Terminals 4 | . 1 . . . . 2 . 1 . . . . Assimilate 1 | . . . . . . . . 1 . . . . Detonate 1 | . . . . . . 1 . . . . . . Disrupt 1 | . . . . . . 1 . . . . . . Skim 1 | . 1 . . . . . . . . . . . Fabricators 3 | . . . . . . . . 3 . . . . Prioritize 1 | . . . . . . . . 1 . . . . Fabnet 2 | . . . . . . . . 2 . . . . Repair Stations . | . . . . . . . . . . . . . Recycling Units . | . . . . . . . . . . . . . Scanalyzers . | . . . . . . . . . . . . . Garrison Access . | . . . . . . . . . . . . . Data Cores Recovered . | . . . . . . . . . . . . . Used . | . . . . . . . . . . . . . Hacking Detections 12 | . 3 . . . . 5 . 4 . . . . Full Trace Events 7 | . 2 . . . . 5 . . . . . . Feedback Events 1 | . . . . . . 1 . . . . . . Corruption 1 | . . . . . . 1 . . . . . . Feedback Blocked . | . . . . . . . . . . . . . Robot Schematics Acquired 4 | . . . . . . . . . . . 4 . Robots Built 2 | . . . . . . . . 2 . . . . Authchips . | . . . . . . . . . . . . . Time 49 | . . . . . . . . 49 . . . . Total Robot Build Rating 4 | . . . . . . . . 4 . . . . Part Schematics Acquired 13 | . . . . . . . . . . . 13 . Parts Built . | . . . . . . . . . . . . . Authchips . | . . . . . . . . . . . . . Time . | . . . . . . . . . . . . . Total Part Build Rating . | . . . . . . . . . . . . . Part Studies Acquired . | . . . . . . . . . . . . . Parts Repaired . | . . . . . . . . . . . . . Time . | . . . . . . . . . . . . . Parts Recycled . | . . . . . . . . . . . . . Recycled Matter . | . . . . . . . . . . . . . Retrieved Matter . | . . . . . . . . . . . . . Retrieved Components . | . . . . . . . . . . . . . Parts Scanalyzed . | . . . . . . . . . . . . . Part Schematics Acquired . | . . . . . . . . . . . . . Parts Damaged . | . . . . . . . . . . . . . Bothacking | -11 -10 -10 -10 -9 -8 -7 -7 -7 -7 -7 -7 -7 ------------ Run | Yrd Mat Min Exi Min Mat Fac Was Fac Low Low Zio Dee Used RIF Installer . | . . . . . . . . . . . . . Robots Hacked . | . . . . . . . . . . . . . Non-combat . | . . . . . . . . . . . . . Combat . | . . . . . . . . . . . . . Robot Hacks Applied . | . . . . . . . . . . . . . Relay Couplers Released . | . . . . . . . . . . . . . Fabnet Peak Effective % . | . . . . . . . . . . . . . Robots Rewired . | . . . . . . . . . . . . . Allies Hacked . | . . . . . . . . . . . . . Hacks Repelled . | . . . . . . . . . . . . . Allies | -11 -10 -10 -10 -9 -8 -7 -7 -7 -7 -7 -7 -7 -------- Run | Yrd Mat Min Exi Min Mat Fac Was Fac Low Low Zio Dee Total Allies 10 | . . . . . . . . 3 . . 7 . Largest Group 7 | . . . . . . . . 3 . . 7 7 Highest-Rated Group 304 | . . . . . . . . 40 . . 304 304 Highest-Rated Ally 96 | . . . . . . . . 15 . . 96 96 Total Orders . | . . . . . . . . . . . . . Ally Attacks 48 | . . . . . . . . 8 . . . 40 Total Damage 1729 | . . . . . . . . 176 . . . 1553 Kills 9 | . . . . . . . . 1 . . . 8 Allies Corrupted . | . . . . . . . . . . . . . Allies Melted 1 | . . . . . . . . . . . . 1 Intel | -11 -10 -10 -10 -9 -8 -7 -7 -7 -7 -7 -7 -7 ------- Run | Yrd Mat Min Exi Min Mat Fac Was Fac Low Low Zio Dee Active Infowar (turns) 444 | . . . . . . . . 115 258 71 . . Terrain 444 | . . . . . . . . 115 258 71 . . Robot Analysis Total 2 | . . . . . . 2 . . . . . . Derelict Logs Recovered 5 | . . 1 . 1 . . . . 1 1 1 . Drone Launches . | . . . . . . . . . . . . . Drone Recoveries . | . . . . . . . . . . . . . Exploration | -11 -10 -10 -10 -9 -8 -7 -7 -7 -7 -7 -7 -7 ------------- Run | Yrd Mat Min Exi Min Mat Fac Was Fac Low Low Zio Dee Turns Passed 3166 | 3 440 72 361 46 385 192 79 238 258 91 382 619 Spaces Moved 3791 | 3 209 31 259 24 282 416 201 459 451 238 709 509 Core 83 | . . . . . . 7 . . . . . 76 Treads 284 | . 92 31 161 . . . . . . . . . Legs 120 | 3 117 . . . . . . . . . . . Wheels 548 | . . . 98 24 159 . . . . . . 267 Hover 46 | . . . . . . . . . . . . 46 Flight 2710 | . . . . . 123 409 201 459 451 238 709 120 Fastest Speed 20 | 120 120 160 100 100 29 26 32 26 20 20 26 26 Average Speed 56 | 120 138 160 137 100 77 32 33 28 25 26 26 101 Slowest Speed 400 | 120 190 160 160 100 189 250 35 35 26 32 106 400 Overloaded Moves 71 | . . . . . . . . . 66 5 . . Propulsion Burnouts . | . . . . . . . . . . . . . Robots Hopped 6 | . . . . . . 2 3 1 . . . . Potential Cave-ins . | . . . . . . . . . . . . . Cave-ins Triggered . | . . . . . . . . . . . . . Exploration Rate (%) 38 | 2 49 9 68 8 17 7 76 9 60 43 78 80 Regions Visited 12 Branch Regions 7 Pre-discovered Areas 1 | . . . 1 . . . . . . . . . Known Exits Taken 3 | . . . . 1 . . . 1 1 . . . Unknown Exits Taken 7 | 1 1 1 1 . 1 . . . . 1 1 . Scrap Searched 2 | . . . . . . . . . . . 2 . Spaces Dug 5 | . . . . . . . . . 5 . . . Terrain Destroyed 218 | . 18 . . . 79 37 . . 5 . . 79 Melee 5 | . . . . . . . . . 5 . . . Projectile 29 | . . . . . 12 3 . . . . . 14 AOE 184 | . 18 . . . 67 34 . . . . . 65 Terrain Rammed . | . . . . . . . . . . . . . Walls Destroyed . | . . . . . . . . . . . . . Machines Disabled . | . . . . . . . . . . . . . Actions | -11 -10 -10 -10 -9 -8 -7 -7 -7 -7 -7 -7 -7 --------- Run | Yrd Mat Min Exi Min Mat Fac Was Fac Low Low Zio Dee Total 4510 | 2 281 38 265 32 409 467 208 538 580 256 847 587 Wait 326 | . 1 . 2 . 21 18 8 46 111 2 93 24 Move 3769 | 2 208 30 258 23 281 412 195 456 450 237 708 509 Hop 5 | . . . . . . 2 2 1 . . . . Pick Up 40 | . 7 . 1 . 12 4 1 2 2 1 6 4 Fast Attach 53 | . 5 . . . 10 10 1 9 . 2 1 15 Attach 44 | . 4 . 2 2 14 4 . . 4 6 3 5 Detach 32 | . 4 . . . 10 3 . 2 2 2 4 5 Swap 34 | . 8 . . . 12 . . 4 1 . 1 8 Drop 44 | . 3 . 2 . 21 7 1 3 . . 3 4 Fire 99 | . 39 8 . 7 28 5 . . 1 . . 11 Melee 33 | . . . . . . . . 15 9 6 1 2 Ram 2 | . . . . . . 2 . . . . . . Kick 2 | . 2 . . . . . . . . . . . Crush . | . . . . . . . . . . . . . Escape Stasis . | . . . . . . . . . . . . . Rewire . | . . . . . . . . . . . . . Trap . | . . . . . . . . . . . . . Miscellaneous 27 | . . . . . . . . . . . 27 . Route ------- -11/Scrapyard -10/Materials (discovered 2 exits: [*Mat] / [*Min]) -10/Mines -10/Exiles -9/Mines (discovered 2 exits: *Mat x2) -8/Materials -7/Factory (discovered 2 exits: Low x2) -7/Waste -7/Factory (discovered 2 exits: *Low x2) -7/Lower Caves -7/Lower Caves (discovered 2 exits: Fac / *Zio) -7/Zion -7/Deep Caves History --------- Turn | Location | Event 1 | -11/Scrapyard | Discovered new exit (range 2) 4 | -11/Scrapyard | Entered Materials 314 | -10/Materials | Discovered new exit (range 5) 325 | -10/Materials | Build established: Mutant 419 | -10/Materials | Discovered new exit (range 11) 432 | -10/Materials | Core integrity fell below 50% 444 | -10/Materials | Entered Mines 488 | -10/Mines | Learned Materials stockpile data 510 | -10/Mines | Deemed a non-threat by the Exiles lab entrance 510 | -10/Mines | Discovered new exit (range 5) 516 | -10/Mines | Entered Exiles 553 | -10/Exiles | Met 8R-AWN 584 | -10/Exiles | Met EX-HEX 641 | -10/Exiles | Met EX-DEC 668 | -10/Exiles | Learned location of Zion (-7) 707 | -10/Exiles | Met EX-BIN 723 | -10/Exiles | Aligned with FarCom system 724 | -10/Exiles | Given EX-Vault access code 763 | -10/Exiles | Opened EX-Vault 779 | -10/Exiles | Found AWS/Gauss 799 | -10/Exiles | Warned to stay clear of 0b10 Research branches 813 | -10/Exiles | Exiles lab attacked by MAIN.C 865 | -10/Exiles | Discovered new exit (range 14) 877 | -10/Exiles | Left Exiles lab with AWS/Gauss 877 | -10/Exiles | Entered Mines 886 | -9/Mines | Core integrity fell below 20% 904 | -9/Mines | Discovered new exit (range 12) 918 | -9/Mines | Identified exit to Materials 923 | -9/Mines | Entered Materials 923 | -8/Materials | Evolved 4 slots: Propulsion x1, Utility x2, Weapon x1 1191 | -8/Materials | Destroyed 8 combat bots 1199 | -8/Materials | Lost 3 parts (2u1w) 1297 | -8/Materials | Discovered new exit (range 14) 1308 | -8/Materials | Entered Factory 1308 | -7/Factory | Evolved 2 slots: Propulsion x1, Utility x1 1316 | -7/Factory | Identified exit to Lower Caves 1485 | -7/Factory | Lost 10 parts (1p7n1u1w) 1500 | -7/Factory | Sucked down chute 1500 | -7/Factory | Entered Waste 1507 | -7/Waste | Spotted C-40 Crusher 1511 | -7/Waste | Spotted C-40 Crusher 1524 | -7/Waste | Spotted C-40 Crusher 1524 | -7/Waste | Spotted C-40 Crusher 1525 | -7/Waste | Spotted C-40 Crusher 1525 | -7/Waste | Discovered new exit (range 16) 1528 | -7/Waste | Crushed by Compactor (1 part destroyed, 1 dropped) 1572 | -7/Waste | Spotted C-40 Crusher 1579 | -7/Waste | Entered Factory 1645 | -7/Factory | Fabricated Y-45 Defender (x2) 1806 | -7/Factory | Lost 3 allies 1817 | -7/Factory | Entered Lower Caves 1818 | -7/Lower Caves | Encountered a Warlord checkpoint 1825 | -7/Lower Caves | Spotted B-75 Beast 1965 | -7/Lower Caves | Identified exit to Lower Caves 2042 | -7/Lower Caves | Attracted the attention of an 0b10 checkpoint 2075 | -7/Lower Caves | Entered another Lower Caves area 2100 | -7/Lower Caves | Spotted B-75 Beast 2112 | -7/Lower Caves | Discovered new exit (range 13) 2124 | -7/Lower Caves | Encountered a Warlord checkpoint 2128 | -7/Lower Caves | Identified exit to Factory 2140 | -7/Lower Caves | Core integrity fell below 50% 2166 | -7/Lower Caves | Entered Zion 2177 | -7/Zion | Lost 7 parts (6n1u) 2201 | -7/Zion | System corruption cleaned by Quarantine Array 2225 | -7/Zion | Found Prototype Device 2228 | -7/Zion | Identified Bomb Factory No. 2 2235 | -7/Zion | Gained Derelict followers 2256 | -7/Zion | Found Prototype Special Weapon 2256 | -7/Zion | Identified RU-N14's Throwing Claymores 2259 | -7/Zion | Found RU-N14's Throwing Claymores 2261 | -7/Zion | Found RU-N14's Throwing Claymores 2262 | -7/Zion | Found RU-N14's Throwing Claymores 2363 | -7/Zion | Discovered new exit (range 3) 2363 | -7/Zion | Saw the warning signs outside the Deep Caves entrance 2392 | -7/Zion | Learned Factory terminal intel 2445 | -7/Zion | Given A8's code to call for help 2472 | -7/Zion | Enhanced Grunt warped into view, answering call for help 2475 | -7/Zion | Enhanced Grunt warped into view, answering call for help 2548 | -7/Zion | Entered Deep Caves 2548 | -7/Deep Caves | Accompanied by 7 allies 2604 | -7/Deep Caves | Z-Facility disabled 2635 | -7/Deep Caves | Lost 8 parts (1p4n1u2w) 2790 | -7/Deep Caves | Found Prototype Protection 2790 | -7/Deep Caves | Identified Zio. Weapon Casing 2821 | -7/Deep Caves | Core integrity fell below 20% 2865 | -7/Deep Caves | Lost 6 parts (1p3n2u) 2875 | -7/Deep Caves | Found Prototype Protection 2875 | -7/Deep Caves | Identified Zio. Heavy Carapace 2946 | -7/Deep Caves | Found Zio. Weapon Casing 3081 | -7/Deep Caves | Build established: Scavenger-Tank 3166 | -7/Deep Caves | Spotted Golem 3167 | -7/Deep Caves | Destroyed by Golem with Assembled Focal Cannon Last Messages --------------- 02910_ Acquired Prototype Device. 02910_ Identified Exp. Heat Sink. 02914_ Discarded Imp. Melee Analysis Suite. 02921_ Acquired Exp. Heat Sink. 02923_ Acquired 39 matter. 02924_ Acquired 9 matter. 02926_ Dropped Zio. Light DM Reactor. 02931_ Acquired 10 matter. 02933_ Dropped Zio. Biocell. 02933_ Acquired Zio. Biocell. 02933_ Dropped Mak. Sword. 02934_ Extracted 577 energy. 02935_ Acquired Zio. Biocell. 02940_ The unstable cave ceiling collapses. 02946_ Acquired Zio. Weapon Casing. 02953_ The unstable cave ceiling collapses. 02997_ as-72092 suffers critical hit (Intensify). 03001_ as-72092 destroyed. 03019_ Machine disabled. 03019_ as-62819 destroyed. Map ----- +----------------------------------------------------+ | | | | | | | | | | | | | ???????????????????????????????????????????### | | ???????????????????????????????????????????# | | ??????????????????????????????????????????## | | ?????????????????????????????????????????## # | | ????????????????????#??????????????????### # | | ?????????????????#?? ?????????????????## # | | ?????????????? # ? ?????????????????# | | ???????????? # ??##?????????????# | | ?????????? # ?? #?????????????# # | | ?????????? ?? #?????????????## ## | | ?????????"" ?? #??????????????####### | | ?????????G ## #??????????????????## | | ????????" # #????????????????### | | ????????" ] ???????????????## | | ????????# ???????????????## | | ?????????" ?????????####### | | ?????????" ?????????## | | ?????????" ?????????# | | ?????????" #?###?????# | | ?????????" @#?# #?????# ## | | ????????# l ### ####??## #?## | | ????????# = # #???######### | | ????????# = ##??????# | | ????????# = ###????# | | ????????# g #????# #### | | ????????# ###????# #??# | | ????????# = M ##?????# #??#### | | ????????# h * #?????# #?????## | | ????????? *M l #?????# #??????## | | ????????? * #?????# #???????# | | ????????? ! g #?????# #???????# | | ?????????" ! #?????# #???????? | | ?????????" ] #?????# #???????? | | ?????????" !! #?????# #???????? | | ?????????" ] ##????# #???????? | | ?????????? =]]= #?#### #???????? | | ?????????? * ### # #???????? | | ?????????? * ## ##??????? | | ??????????? * ## ##?????? | | ??????????? * #?????? | | ???????????? #??? | | ???????????? ###### #?? | | ???????????? ####?????# | | ????????????? #?????????# | +----------------------------------------------------+ Best States ------------- Heat Dissipation 86 Energy Generation 27 Energy Capacity 850 Matter Stores 300 Matter Capacity 300 Sight Range 16 Terrain Scan Range 16 Terrain Scan Density 210 Armor Coverage 1600 Weapon Shielding 100 Evasion (%) 66 Targeting Accuracy 6 Melee Accuracy 11 Recoil Reduction 2 Particle Charging 15 Offensive Hacking 40 Item Schematics ----------------- Gauss Rifle | -7/Zion | Archive Fission Core | -7/Zion | Archive Med. Treads | -7/Zion | Archive Thermic Laser | -7/Zion | Archive Imp. Shield Generator | -7/Zion | Archive Focal Shield | -7/Zion | Archive Adv. System Shield | -7/Zion | Archive Field Propulsion Drive | -7/Zion | Archive Weapon Cycler | -7/Zion | Archive Nuclear Pulse Thruster | -7/Zion | Archive Imp. Medium Armor Plating | -7/Zion | Archive Hvy. Flak Cannon | -7/Zion | Archive Coolant Injector | -7/Zion | Archive Robot Schematics ------------------ R-06 Scavenger | -7/Zion | Archive G-73 Enforcer | -7/Zion | Archive L-31 Rogue | -7/Zion | Archive S-27 Virus | -7/Zion | Archive Fabricated ------------ Y-45 Defender | x2 | -7/Factory | Preloaded Repaired ---------- Nothing Studied --------- None Alien Tech Used ----------------- None Achievements -------------- None Challenges ------------ None Game ------ Seed EtherialPlasmaFlamer Manual? 0 Play Time 00:30:41 Cumulative 1358.4 hours Start 2026.08.09 @ 14:18:46 End 2026.08.09 @ 14:45:38 Sessions 1 Manual Loads 0 Difficulty Rogue Special Mode None Game No. 1667 Rogue 1383 Adventurer 124 Explorer 160 Win Type - Total 70 Types 55/0/9/4/1/0/0/1/0/0 Lore% 93 Gallery% 84 Achievement% 74 Wizard Run 0 Options --------- Layout 0 ASCII 0 Keyboard 1 Movement Numpad Keybinds 0 Fullscreen 2 Font 18/X11 Map View 76x50 Zoom Use 0% Tactical HUD 1 Map Filters NONE Filters NONE Steam 1 RUN: 94f3b9d1-a546-417c-aa80-fccbaa2b1178